[Event "125-Jahre Werder Bremen 2024"]
[Site "Bremen"]
[Date "2024.03.04"]
[Round "3.2"]
[White "Aditya Mittal"]
[Black "Hejazipour, Mitra"]
[Result "1-0"]
[ECO "C84"]
[WhiteElo "2594"]
[BlackElo "2356"]
[Annotator "TA"]
[PlyCount "85"]
[EventDate "2024.02.26"]
[EventType "swiss"]
[EventCountry "GER"]
[SourceTitle "playchess.com"]
[Source "ChessBase"]
[SourceQuality "1"]
[TimeControl "40/6000+30:1800+30"]

{[%evp 18,85,16,20,21,16,18,7,29,34,37,11,21,0,1,7,18,14,25,31,58,67,68,62,61,43,60,7,27,7,16,12,65,48,61,0,61,-78,-78,-83,-76,-72,-48,-58,-16,-20,0,0,29,-25,-24,-76,39,-113,-41,-86,112,102,305,281,306,293,273,302,977,960,1552,1522,1848,1860]} 1. e4 {[%emt 0:00:02]} e5 {[%emt 0:00:05]} 2. Nf3 {[%emt 0:00:02]} Nc6 {[%emt 0:00:09]} 3. Bb5 {[%emt 0:00:07]} a6 {[%emt 0:00:10]} 4. Ba4 {[%emt 0:00:02]} Nf6 {[%emt 0:00:13]} 5. d3 {[%emt 0:01:01]} b5 {[%emt 0:00:27]} 6. Bb3 {[%emt 0:00:01]} Be7 {[%emt 0:00:48]} 7. a4 {[%emt 0:00:59]} b4 {[%emt 0:03:46]} 8. a5 {[%emt 0:01:37]} d6 {[%emt 0:01:34]} 9. Nbd2 {[%emt 0:00:35]} O-O {[%emt 0:00:46]} 10. O-O {[%emt 0:00:52]} Rb8 {[%emt 0:10:26]} 11. c3 {[%emt 0:04:56]} Be6 {[%emt 0:04:08]} 12. Nc4 {[%emt 0:02:00]} Bg4 {[%emt 0:09:14] The position is equal.} 13. Ba4 {[%emt 0:05:10]} Na7 {[%emt 0:00:40]} 14. h3 {[%emt 0:09:48]} Be6 {[%emt 0:04:11]} 15. Be3 {[%emt 0:04:57]} c5 {[%emt 0:00:47]} 16. Nfd2 {[%emt 0:00:26]} bxc3 {[%emt 0:09:34]} 17. bxc3 {[%emt 0:00:06]} Nb5 {[%emt 0:00:18]} 18. Qc2 {[%emt 0:04:35]} Ne8 {[%emt 0:17:43][%cal Bf6e8,Be8c7,Bc7e6][%mdl 32]} 19. Nb6 {[%emt 0:05:29]} Nec7 {[%emt 0:09:22]} 20. Bb3 {[%emt 0:13:19]} Bxb3 {[%emt 0:06:14]} 21. Nxb3 {[%emt 0:01:24]} Ne6 {[%emt 0:01:43]} 22. g3 {[%emt 0:06:05]} ({Better is} 22. Rfb1 $14) 22... Bf6 {[%emt 0:07:09]} 23. Rad1 {[%emt 0:05:13]} Qe8 {[%emt 0:01:44]} 24. Nd2 {[%emt 0:10:30]} Qc6 {[%emt 0:07:08]} (24... g6 $11) 25. Nd5 {[%emt 0:04:01]} Bd8 $1 {[%emt 0:00:16][%cal Oe6c7]} 26. Qa2 {[%emt 0:00:08]} (26. Qb3 $14) 26... Qd7 {[%emt 0:02:51]} (26... Nec7 $11) 27. Rb1 {[%emt 0:01:08] White is more active.} (27. Kg2 $14) 27... Nec7 $17 {[%emt 0:00:37] aiming for ...Nxd5.} 28. Nb6 {[%emt 0:06:56]} Qxh3 {[%emt 0:00:27]} 29. Rfc1 {[%emt 0:00:19]} h5 {[%emt 0:01:35]} 30. Nf1 $1 {[%emt 0:03:15]} Be7 {[%emt 0:03:04]} 31. f3 {[%emt 0:02:14]} g6 {[%emt 0:01:49]} 32. Rb2 {[%emt 0:05:00]} Rbd8 {[%emt 0:03:14]} 33. Rh2 {[%emt 0:00:23]} (33. Bh6 $142 $1) 33... Qe6 $11 {[%emt 0:00:03]} 34. Qd2 {[%emt 0:02:23]} (34. Qg2 $11 {remains equal.}) 34... f6 {[%emt 0:04:20]} ({Black should try} 34... f5 $1 $17) 35. Bf2 $2 {[%emt 0:04:05] [#]} (35. g4 $14 {keeps the upper hand.}) 35... Rf7 {[%emt 0:00:20]} ({Black should play} 35... f5 $1 $17 36. Be3 Kh7) 36. Ne3 {[%emt 0:01:17]} Na7 $2 {[%emt 0:00:01]} (36... f5 $17 {Hoping for ...Bg5.} 37. exf5 gxf5) 37. g4 $16 {[%emt 0:01:45]} hxg4 $2 {[%emt 0:00:45] This move loses the game for Black.} (37... Rh7 $16) 38. Nxg4 $18 {[%emt 0:00:07]} ({Inferior is} 38. fxg4 Rh7 $15) 38... Rg7 {[%emt 0:00:29] [#]} 39. d4 $1 {[%emt 0:01:19]} exd4 {[%emt 0:00:29]} 40. cxd4 {[%emt 0:00:22] Strongly threatening d5.} d5 $2 {[%emt 0:00:59]} (40... Qb3 41. Rc3 (41. dxc5 Qxf3 42. Rg2 Rh7 $18) 41... Qb1+ 42. Kg2 (42. Rc1 Qb3 $18) 42... Nc6 43. dxc5 f5) 41. exd5 {[%emt 0:33:50] White is clearly winning.} ({Weaker is} 41. dxc5 dxe4 42. Qf4 Nc6 $11) 41... Nxd5 {[%emt 0:01:05]} 42. Re1 {[%emt 0:00:00]} Qc6 {[%emt 0:00:36]} 43. Qh6 {[%emt 0:00:00] Weighted Error Value: White=0.27 (precise) /Black=0.39.  Loses game:     	---       	Black=1      Mistake:       	White=6     	Black=6      Inaccurate:     	White=2     	Black=4      OK:         	White=11    	Black=6      Best:        	White=1     	Black=2      Strong:       	White=2     	Black=1} 1-0

[Event "125-Jahre Werder Bremen 2024"]
[Site "Bremen"]
[Date "2024.03.04"]
[Round "3.3"]
[White "Plat, Vojtech"]
[Black "Efimenko, Zahar"]
[Result "1/2-1/2"]
[ECO "E35"]
[WhiteElo "2528"]
[BlackElo "2568"]
[Annotator "TA"]
[PlyCount "64"]
[EventDate "2024.02.26"]
[EventType "swiss"]
[EventCountry "GER"]
[SourceTitle "playchess.com"]
[Source "ChessBase"]
[SourceQuality "1"]
[TimeControl "40/6000+30:1800+30"]

{[%evp 27,64,0,0,-3,0,0,0,-5,-10,-19,-10,-14,-19,-29,-25,-45,-34,-45,-43,-49,-18,-78,-51,-64,-56,-68,-64,-73,-71,-65,-71,-85,-73,-93,-69,-72,-72,-72,-45]} 1. d4 {[%emt 0:00:05]} Nf6 {[%emt 0:00:44]} 2. c4 {[%emt 0:00:05]} e6 {[%emt 0:00:06]} 3. Nc3 {[%emt 0:00:05]} Bb4 {[%emt 0:00:54]} 4. Qc2 {[%emt 0:00:06]} d5 {[%emt 0:00:27]} 5. cxd5 {[%emt 0:00:32]} exd5 {[%emt 0:00:26]} 6. Bg5 {[%emt 0:00:06]} h6 {[%emt 0:00:57]} 7. Bxf6 {[%emt 0:00:06]} Qxf6 {[%emt 0:00:16]} 8. a3 {[%emt 0:00:06]} Bxc3+ {[%emt 0:00:58]} 9. Qxc3 {[%emt 0:00:05]} c6 {[%emt 0:01:15]} 10. Nf3 {[%emt 0:00:05]} O-O {[%emt 0:00:23]} 11. e3 {[%emt 0:00:03]} Bf5 {[%emt 0:03:22]} 12. Bd3 {[%emt 0:03:07]} Bxd3 {[%emt 0:01:09]} 13. Qxd3 {[%emt 0:00:03]} Nd7 {[%emt 0:00:07][%cal Bb8d7,Bd7b6,Bb6c8,Bc8d6,Bd6e4][%mdl 32]} 14. O-O {[%emt 0:00:18]} Rfe8 {[%emt 0:03:21]} 15. Rac1 {[%emt 0:01:06]} Qe6 {[%emt 0:05:20]} 16. Rfe1 {[%emt 0:01:27]} Nb6 {[%emt 0:02:11]} 17. Nd2 {[%emt 0:02:08][%cal Bf3d2,Bd2b3,Bb3c5][%mdl 32] The position is equal.} Re7 {[%emt 0:04:13]} 18. Qb3 {[%emt 0:01:00]} Rae8 {[%emt 0:02:57]} 19. a4 {[%emt 0:00:10]} Nc8 {[%emt 0:01:04]} 20. a5 {[%emt 0:00:10]} a6 {[%emt 0:00:50]} 21. Qd3 {[%emt 0:04:08]} Nd6 {[%emt 0:01:20]} 22. Nb3 {[%emt 0:01:31]} f5 {[%emt 0:12:53][%cal Of5f4]} 23. Nc5 {[%emt 0:02:05]} Qc8 {[%emt 0:00:53][%cal Of5f4]} 24. g3 {[%emt 0:10:11]} (24. Rf1 $11) 24... Ne4 {[%emt 0:16:50]} (24... f4 $5 25. gxf4 (25. Qg6 f3 $15) 25... Qg4+ 26. Kh1 Qf3+ 27. Kg1 Re6 28. Nxe6 Rxe6 $17) 25. Rf1 {[%emt 0:07:16]} h5 {[%emt 0:10:54]} 26. Qd1 {[%emt 0:01:22]} Nxc5 {[%emt 0:01:37]} 27. Rxc5 {[%emt 0:00:30] [#]} h4 {[%emt 0:01:07]} 28. Qh5 {[%emt 0:01:47]} (28. Rc3 Re4) 28... Re4 {[%emt 0:01:59]} 29. Rfc1 {[%emt 0:03:29] aiming for Rxd5.} Qe6 {[%emt 0:10:08]} 30. Qf3 {[%emt 0:07:57]} h3 {[%emt 0:01:12][%cal Oe4d4]} 31. Kf1 {[%emt 0:01:39]} ({Don't go for} 31. Qh5 $2 f4 32. Rf1 (32. gxf4 $2 {perishes.} Rxe3 $19) 32... fxe3 33. fxe3 Rxe3 $19) 31... Qg6 {[%emt 0:02:53]} 32. R5c3 {[%emt 0:02:20]} R8e7 {[%emt 0:00:52] Weighted Error Value: White=0.13 (very precise) /Black=0.05 (flawless) .  Mistake:       	White=1     	---        Inaccurate:     	---       	Black=3      OK:         	White=1     	Black=10     Brilliant:      	---       	Black=1} 1/2-1/2

[Event "125-Jahre Werder Bremen 2024"]
[Site "Bremen"]
[Date "2024.03.04"]
[Round "3.4"]
[White "Teclaf, Pawel"]
[Black "Wachinger, Nikolas"]
[Result "1/2-1/2"]
[ECO "E17"]
[WhiteElo "2556"]
[BlackElo "2442"]
[Annotator "RC"]
[PlyCount "75"]
[EventDate "2024.02.26"]
[EventType "swiss"]
[EventCountry "GER"]
[SourceTitle "playchess.com"]
[Source "ChessBase"]
[SourceQuality "1"]
[TimeControl "40/6000+30:1800+30"]

1. Nf3 {[%emt 0:00:03]} d5 {[%emt 0:00:10]} 2. g3 {[%emt 0:00:03]} Nf6 {[%emt 0:01:04]} 3. Bg2 {[%emt 0:00:13]} e6 {[%emt 0:00:34]} 4. O-O {[%emt 0:00:15]} Be7 {[%emt 0:00:30]} 5. c4 {[%emt 0:01:52]} O-O {[%emt 0:00:12]} 6. b3 {[%emt 0:00:04]} b6 {[%emt 0:01:05]} 7. d4 {[%emt 0:00:05]} Bb7 {[%emt 0:01:42]} 8. Nc3 {[%emt 0:00:13]} Nbd7 {[%emt 0:04:23]} 9. Bb2 {[%emt 0:00:38]} c5 {[%emt 0:02:04]} 10. Ne5 {[%emt 0:00:14]} Qc8 {[%emt 0:29:06]} 11. cxd5 {[%emt 0:26:14]} Nxd5 {[%emt 0:03:13]} 12. Nxd5 {[%emt 0:16:20]} Bxd5 {[%emt 0:00:09]} 13. Nxd7 {[%emt 0:01:21]} Qxd7 {[%emt 0:01:58]} 14. dxc5 {[%emt 0:00:48]} Bxc5 {[%emt 0:03:54]} 15. Qd3 {[%emt 0:08:58]} Rad8 {[%emt 0:18:25]} 16. Rfd1 {[%emt 0:05:09]} f6 {[%emt 0:10:58]} 17. Bxd5 {[%emt 0:08:26]} Qxd5 {[%emt 0:02:04]} 18. Qxd5 {[%emt 0:00:08]} Rxd5 {[%emt 0:00:31]} 19. Rxd5 {[%emt 0:00:22]} exd5 {[%emt 0:00:02]} 20. Rd1 {[%emt 0:02:06]} Rd8 {[%emt 0:00:11]} 21. Kf1 {[%emt 0:05:20]} Kf7 {[%emt 0:00:46]} 22. e4 {[%emt 0:01:34]} Ke6 {[%emt 0:10:18]} 23. f4 {[%emt 0:00:17]} Rc8 {[%emt 0:09:45]} 24. Rxd5 {[%emt 0:07:53]} Bb4 {[%emt 0:00:23]} 25. a3 {[%emt 0:02:07]} Rc2 {[%emt 0:01:06]} 26. Bxf6 {[%emt 0:02:05]} gxf6 {[%emt 0:00:24]} 27. axb4 {[%emt 0:00:05]} Rxh2 {[%emt 0:00:11]} 28. Rd3 {[%emt 0:09:48]} h5 {[%emt 0:02:36]} 29. Rc3 {[%emt 0:02:35]} Kd7 {[%emt 0:01:47]} 30. b5 {[%emt 0:02:14]} h4 {[%emt 0:01:41]} 31. Rc6 {[%emt 0:01:47]} hxg3 {[%emt 0:01:01]} 32. Rxf6 {[%emt 0:00:08]} Rf2+ {[%emt 0:01:05]} 33. Kg1 {[%emt 0:00:24]} Ke7 {[%emt 0:00:51]} 34. e5 {[%emt 0:01:07]} Re2 {[%emt 0:00:53]} 35. Rg6 {[%emt 0:03:14]} Rf2 {[%emt 0:00:10]} 36. Rf6 {[%emt 0:01:04]} Re2 {[%emt 0:00:07]} 37. Rg6 {[%emt 0:01:41]} Rf2 {[%emt 0:00:07]} 38. Rf6 {[%emt 0:00:31]} 1/2-1/2

[Event "125-Jahre Werder Bremen 2024"]
[Site "Bremen"]
[Date "2024.03.04"]
[Round "3.5"]
[White "Soderstrom, Adrian"]
[Black "Pruijssers, Roeland"]
[Result "1-0"]
[ECO "A57"]
[WhiteElo "2288"]
[BlackElo "2537"]
[Annotator "TA"]
[PlyCount "159"]
[EventDate "2024.02.26"]
[EventType "swiss"]
[EventCountry "GER"]
[SourceTitle "playchess.com"]
[Source "ChessBase"]
[SourceQuality "1"]
[TimeControl "40/6000+30:1800+30"]

{[%evp 15,159,43,41,32,32,12,6,13,22,15,13,20,24,11,27,10,33,13,0,0,0,0,0,0,0,0,0,-10,0,0,0,-29,1,0,0,-4,0,0,13,0,8,0,0,0,0,0,0,0,0,-10,-7,-8,-8,-8,-8,-142,-141,-141,-141,-142,-127,-135,-135,-127,0,0,0,0,0,0,0,0,0,0,0,0,0,0,0,0,0,0,0,0,0,0,0,0,0,0,0,0,0,0,5110,5110,5110,5110,4095,3759,3715,516,5132,5125,5110,5118,5110,5110,5096,5089,5073,1890,1849,1514,29968,568,29973,29973,29973,29975,29977,29978,29984,29985,29985,29986,29988,29984,29985,29987,29987,29984,29984,29985,29987,29988,29990,29991,29991,29992,29992,29993,29997,29998,29998,29999]} 1. d4 {[%emt 0:00:11]} Nf6 {[%emt 0:00:11]} 2. c4 {[%emt 0:00:12]} c5 {[%emt 0:00:30]} 3. d5 {[%emt 0:00:20]} b5 {[%emt 0:00:09]} 4. cxb5 {[%emt 0:00:20]} a6 {[%emt 0:00:08]} 5. e3 {[%emt 0:02:42]} axb5 {[%emt 0:02:16]} 6. Bxb5 {[%emt 0:00:38]} Qa5+ {[%emt 0:00:12]} 7. Nc3 {[%emt 0:00:04]} Bb7 {[%emt 0:00:22]} 8. Bd2 {[%emt 0:00:19]} Qb6 {[%emt 0:00:16]} 9. a4 {[%emt 0:00:42] And now e4 would win.} Nxd5 {[%emt 0:00:14]} 10. Nxd5 {[%emt 0:01:06]} Bxd5 {[%emt 0:00:10]} 11. Nf3 {[%emt 0:01:26] The position is equal.} e6 {[%emt 0:00:24]} 12. O-O {[%emt 0:01:50]} Qb7 {[%emt 0:01:45]} 13. Bc3 {[%emt 0:01:28]} Be7 {[%emt 0:00:44] Wards off Ng5} 14. Ne5 {[%emt 0:03:45] Strongly threatening Qg4.} (14. Bxg7 $2 {is the wrong capture.} Rg8 15. Ne1 (15. e4 $2 Bxe4 16. Ra3 Rxg7 $19) 15... Rxg7 $19) 14... Bxg2 {[%emt 0:07:03] [#]} 15. Nxd7 $1 {[%emt 0:01:08]} Nxd7 {[%emt 0:00:08]} (15... Bc6 {with more complications.} 16. Nxb8 Bxb5 17. axb5 Rxb8 18. Qg4 Bf6) 16. Qxd7+ {[%emt 0:00:10]} (16. Bxd7+ {keeps more tension.} Qxd7 17. Kxg2 Ra6 18. a5) 16... Qxd7 {[%emt 0:00:12]} 17. Bxd7+ {[%emt 0:00:02]} Kxd7 {[%emt 0:00:08]} 18. Kxg2 {[%emt 0:00:05]} Rhb8 {[%emt 0:01:59]} 19. Rfc1 {[%emt 0:05:22]} (19. Bxg7 $2 {perishes.} Rg8 20. b3 Rxg7+ $19) 19... g5 {[%emt 0:06:26]} 20. h3 {[%emt 0:02:18]} h5 {[%emt 0:00:28]} 21. Rc2 {[%emt 0:06:16]} f5 {[%emt 0:10:10]} 22. Rd1+ {[%emt 0:03:59]} Kc6 {[%emt 0:06:19]} 23. a5 {[%emt 0:05:14]} Rb3 {[%emt 0:03:41]} 24. Rcd2 {[%emt 0:00:59]} Rb7 {[%emt 0:00:46] Against Rd7} 25. Rc2 {[%emt 0:01:28]} Kb5 {[%emt 0:02:57]} 26. Rcd2 {[%emt 0:00:32]} Raa7 {[%emt 0:02:37]} 27. e4 {[%emt 0:02:22]} f4 {[%emt 0:00:39]} 28. Kf3 {[%emt 0:01:16]} Kc4 {[%emt 0:02:37]} 29. Rc1 {[%emt 0:01:02][%cal Oh3h4]} Kb3 {[%emt 0:08:48]} 30. Rcd1 {[%emt 0:03:03]} c4 {[%emt 0:05:58]} 31. Rc1 {[%emt 0:17:31]} Rb5 {[%emt 0:18:54]} 32. Rd4 {[%emt 0:09:22]} Bc5 {[%emt 0:15:43]} 33. Rd8 {[%emt 0:01:12]} Bb4 {[%emt 0:00:07]} 34. Bxb4 {[%emt 0:03:24]} Rxb4 $11 {[%emt 0:00:24][%mdl 4096] Endgame. KRR-KRR} 35. Rc8 {[%emt 0:00:54]} (35. Rd2 $1 $11) 35... Rxa5 $17 {[%emt 0:00:48][%cal Oe6e5]} 36. Rc3+ {[%emt 0:00:58]} Kxb2 {[%emt 0:00:07]} 37. R3xc4 {[%emt 0:00:29]} Ra3+ {[%emt 0:04:17]} 38. Kg2 {[%emt 0:00:04]} Rxc4 {[%emt 0:00:13]} 39. Rxc4 {[%emt 0:00:03] [#] KR-KR} h4 {[%emt 0:00:07]} ({Better is} 39... Rc3 $1 $17 {[%cal Rc3c4]} 40. Rd4 h4) 40. Rc6 $11 {[%emt 0:05:42]} f3+ {[%emt 0:06:08]} 41. Kh2 $1 {[%emt 0:30:02]} Ra2 {[%emt 0:32:18]} 42. Rxe6 {[%emt 0:01:03]} Kc3 {[%emt 0:00:16]} 43. Rf6 {[%emt 0:00:41]} Rxf2+ {[%emt 0:01:16]} 44. Kg1 {[%emt 0:00:24]} Rg2+ {[%emt 0:00:07]} 45. Kf1 {[%emt 0:00:08]} Rg3 {[%emt 0:00:55]} 46. e5 $1 {[%emt 0:01:15]} Rxh3 {[%emt 0:00:30]} 47. e6 {[%emt 0:00:28] White wants to mate with e7.} g4 {[%emt 0:00:00]} 48. e7 {[%emt 0:00:00]} Rh1+ {[%emt 0:00:00]} 49. Kf2 {[%emt 0:00:00] Rc6+ would kill now.} Rh2+ {[%emt 0:00:00]} 50. Kf1 $1 {[%emt 0:00:00]} Re2 {[%emt 0:00:00][%cal Oh4h3]} 51. Rf4 {[%emt 0:00:00]} g3 {[%emt 0:00:00] ( -> ...g2+)} 52. Rxf3+ {[%emt 0:00:00]} Kd2 {[%emt 0:00:00]} 53. Rf4 {[%emt 0:00:00] Intending Rd4+ and mate.} g2+ {[%emt 0:00:00]} 54. Kg1 {[%emt 0:00:00] Threatening mate with Rf2.} h3 $2 {[%emt 0:00:00][%mdl 8192]} (54... Rxe7 $11 55. Kxg2 Re2+ 56. Kh3 Re3+ 57. Kxh4 Kd3) 55. Rf2 $18 {[%emt 0:00:00]} h2+ {[%emt 0:00:00]} 56. Kxh2 {[%emt 0:00:00]} Rxf2 {[%emt 0:00:00]} 57. e8=Q {[%emt 0:00:00] KQ-KR} (57. e8=B {leads to mate.} Ke3 58. Bc6 Rf6 59. Bxg2 Kf2 60. Kh3 Rh6+ 61. Kg4 Kxg2 62. Kf5 Kf3 63. Ke5 Rh5+ 64. Ke6 Kf4 65. Kd6 Ke4 66. Ke7 Ke5 67. Kd7 Rh6 68. Kc7 Kd5 69. Kd7 Rh7+ 70. Ke8 Ke5 71. Kf8 Ke6 72. Kg8 Rf7 73. Kh8 Kf6 74. Kg8 Kg6 75. Kh8 Rf8#) 57... Re2 {[%emt 0:00:00]} 58. Qd7+ {[%emt 0:00:00]} (58. Qb5 $142 Ke3 59. Qd5) 58... Ke1 {[%emt 0:00:00]} (58... Kc1 $142 59. Qd4 Kc2 60. Qc4+ Kd2) 59. Kg1 {[%emt 0:00:00]} Rd2 {[%emt 0:00:00]} 60. Qc6 {[%emt 0:00:00]} Kd1 {[%emt 0:00:00]} 61. Qc3 {[%emt 0:00:00]} Re2 {[%emt 0:00:00]} 62. Qd3+ {[%emt 0:00:00]} Ke1 {[%emt 0:00:00]} 63. Qd4 {[%emt 0:00:00]} Rd2 {[%emt 0:00:00]} 64. Qa1+ {[%emt 0:00:00]} Rd1 {[%emt 0:00:00]} 65. Qe5+ {[%emt 0:00:00]} Kd2+ {[%emt 0:00:00]} 66. Kxg2 {[%emt 0:00:00] White mates.} Kc2 {[%emt 0:00:00]} 67. Qc5+ {[%emt 0:00:00]} Kb2 {[%emt 0:00:00]} 68. Kf2 {[%emt 0:00:00]} Rc1 {[%emt 0:00:00]} 69. Qb4+ {[%emt 0:00:00]} Ka2 {[%emt 0:00:00]} 70. Ke2 {[%emt 0:00:00]} Rc8 {[%emt 0:00:00]} 71. Qb6 {[%emt 0:00:00]} Rc3 {[%emt 0:00:00]} 72. Kd2 {[%emt 0:00:00]} Rb3 {[%emt 0:00:00]} 73. Qa5+ {[%emt 0:00:00]} Kb2 {[%emt 0:00:00]} 74. Qe5+ {[%emt 0:00:00]} Kb1 {[%emt 0:00:00]} 75. Qd4 {[%emt 0:00:00]} Rh3 {[%emt 0:00:00]} 76. Qb6+ {[%emt 0:00:00]} Ka1 {[%emt 0:00:00]} 77. Qf6+ {[%emt 0:00:00]} Ka2 {[%emt 0:00:00]} 78. Qe6+ {[%emt 0:00:00]} Rb3 {[%emt 0:00:00]} 79. Kc2 {[%emt 0:00:00]} Ka1 {[%emt 0:00:00]} 80. Kxb3 {[%emt 0:46:31] What a bad dream for Black.   Weighted Error Value: White=0.22 (precise) /Black=0.05 (flawless) .  Loses game:     	---       	Black=1      Mistake:       	White=1     	Black=1      Inaccurate:     	White=1     	Black=1      OK:         	White=15    	Black=12     Best:        	White=10    	Black=5      Strong:       	White=3     	---} 1-0

[Event "125-Jahre Werder Bremen 2024"]
[Site "Bremen"]
[Date "2024.03.04"]
[Round "3.6"]
[White "Schneider, Jana"]
[Black "Krastev, Alexander"]
[Result "1-0"]
[ECO "C70"]
[WhiteElo "2303"]
[BlackElo "2457"]
[Annotator "TA"]
[PlyCount "83"]
[EventDate "2024.02.26"]
[EventType "swiss"]
[EventCountry "GER"]
[SourceTitle "playchess.com"]
[Source "ChessBase"]
[SourceQuality "1"]
[TimeControl "40/6000+30:1800+30"]

{[%evp 29,83,20,31,29,31,28,24,16,59,26,57,59,35,13,10,0,0,3,10,2,68,61,62,0,35,56,28,31,34,43,37,36,23,45,30,27,250,250,250,245,316,331,431,420,521,512,1003,957,1166,1131,6083,6083,5310,1956,1316,1315]} 1. e4 {[%emt 0:00:03]} e5 {[%emt 0:06:40]} 2. Nf3 {[%emt 0:00:16]} Nc6 {[%emt 0:00:05]} 3. Bb5 {[%emt 0:00:52]} a6 {[%emt 0:00:08]} 4. Ba4 {[%emt 0:00:05]} Bc5 {[%emt 0:00:14]} 5. c3 {[%emt 0:10:59]} Nge7 {[%emt 0:00:09]} 6. d4 {[%emt 0:03:58] C70: Ruy Lopez: 3...a6 4 Ba4, Norwegian and Delayed Schliemann.} exd4 {[%emt 0:00:07]} 7. cxd4 {[%emt 0:00:19]} Bb4+ {[%emt 0:00:04]} 8. Nc3 {[%emt 0:09:28]} d5 {[%emt 0:00:17]} 9. O-O {[%emt 0:04:24]} Bxc3 {[%emt 0:10:56]} 10. bxc3 {[%emt 0:01:16]} dxe4 {[%emt 0:15:54]} 11. Ng5 {[%emt 0:01:06]} Bf5 {[%emt 0:02:22]} 12. Re1 {[%emt 0:03:36]} O-O {[%emt 0:11:00]} 13. Nxe4 {[%emt 0:03:05]} b5 {[%emt 0:21:00]} 14. Bb3 {[%emt 0:05:39]} Na5 {[%emt 0:03:05]} 15. Bc2 $146 {[%emt 0:00:35]} (15. Ba3 $16 Re8 16. Bxf7+ Kxf7 17. Qf3 Kg8) ({Predecessor:} 15. Ba3 Re8 16. Bxf7+ Kxf7 17. Qf3 Nac6 18. g4 Qd5 19. Bxe7 Nxe7 20. gxf5 Kg8 21. f6 {1-0 Dvoirys,S (2466)-Nabaty,T (2644) ISR-chT Israel 2020 (7.1)}) 15... Bg6 {[%emt 0:06:40]} 16. h4 {[%emt 0:11:47]} Nd5 {[%emt 0:02:35]} 17. h5 {[%emt 0:10:05]} Bxe4 {[%emt 0:00:16]} 18. Bxe4 {[%emt 0:01:46]} Nxc3 {[%emt 0:01:18]} 19. Bxh7+ $1 {[%emt 0:00:20]} Kxh7 {[%emt 0:00:03]} 20. Qd3+ {[%emt 0:00:12]} Kg8 {[%emt 0:00:09]} 21. Qxc3 {[%emt 0:00:24]} Nc4 {[%emt 0:00:06]} 22. Re4 {[%emt 0:05:44]} f5 {[%emt 0:06:19]} 23. Re6 {[%emt 0:01:47]} Qd5 {[%emt 0:16:27]} 24. Rg6 {[%emt 0:01:02]} Rae8 {[%emt 0:04:46]} (24... Rad8 $1 $11) 25. h6 $14 {[%emt 0:09:58]} (25. Rxa6 f4 26. a4 Rf5 (26... Qxh5 27. axb5 Qd1+ 28. Kh2 $11) 27. Bxf4 Rxf4 28. axb5 Rxd4 $19) 25... Rf7 {[%emt 0:00:03]} 26. hxg7 {[%emt 0:11:04]} (26. Rxa6 $2 b4 27. Qh3 (27. Qxb4 $2 Qxd4 28. Rb1 Qd1+ 29. Kh2 Ne5 $19) 27... Qxd4 28. hxg7 Rxg7 $19 (28... Qxa1 29. Qh8#) (28... Re1+ $2 29. Kh2 $18)) (26. Bf4 $14) 26... Rxg7 {[%emt 0:00:10]} 27. Rxg7+ {[%emt 0:00:54]} (27. Rxa6 $2 Qxg2#) 27... Kxg7 {[%emt 0:00:01]} 28. Bf4 {[%emt 0:01:37]} Re4 {[%emt 0:00:49]} 29. Qg3+ {[%emt 0:00:38]} (29. Bxc7 Qxd4 30. Rc1 Qxc3 31. Rxc3 Kf7 $15) 29... Kf7 {[%emt 0:00:01]} 30. Qg5 {[%emt 0:01:35]} Qxd4 {[%emt 0:02:40]} 31. Qh5+ {[%emt 0:02:39]} (31. Qxf5+ Ke7 32. Qh7+ Kf8 33. Bh6+ Ke8 $11) 31... Ke6 {[%emt 0:00:07]} 32. Rd1 {[%emt 0:00:15]} Rxf4 $2 {[%emt 0:01:24]} (32... Qg7 $1 $11) 33. Qe8+ $18 {[%emt 0:01:00]} Kd5 {[%emt 0:00:10]} 34. Qf7+ {[%emt 0:01:40]} (34. Rxd4+ Kxd4 35. Qh8+ Kd5 36. Qg8+ Ke5 37. Qe8+ Kd5) 34... Kc5 {[%emt 0:00:53]} 35. Rxd4 {[%emt 0:02:36]} (35. Qxc7+ Kb4 36. Rxd4 Rxd4 $18) 35... Rxd4 {[%emt 0:00:20]} 36. Qxf5+ {[%emt 0:00:14]} (36. Qxc7+ Kd5 37. Qb7+ Ke5 38. Qxa6 Nd6 $18) 36... Kb4 {[%emt 0:00:05]} 37. g4 {[%emt 0:01:10]} (37. Qb1+ Ka5 38. Qc1 (38. Qe1+ b4 $18) 38... c5 $18) 37... c5 {[%emt 0:00:21]} (37... Nd6 $142 38. Qf3 (38. Qb1+ Kc5 $18) 38... Kc5) 38. g5 $18 {[%emt 0:00:40]} Nd6 {[%emt 0:01:01]} 39. Qe6 {[%emt 0:00:43]} c4 {[%emt 0:00:39]} 40. g6 {[%emt 0:00:35]} c3 {[%emt 0:00:35]} 41. Qb3+ {[%emt 0:30:25]} (41. g7 $142 c2 42. Qb3+ (42. g8=R $2 {is the wrong capture.} c1=Q+ 43. Kg2 Qc6+ 44. Kf1 Qc4+ 45. Qxc4+ bxc4 $19) (42. Qe1+ Kc5 $18) 42... Ka5 43. Qxc2 (43. g8=B Rg4+ 44. Kh2 c1=Q 45. Bd5 Rh4+) (43. g8=Q c1=Q+ 44. Kg2 Nf5 $17) (43. Qc3+ b4 $18) 43... Rg4+ 44. Kh2) 41... Kc5 $18 {[%emt 0:30:08]} 42. Qxc3+ {[%emt 0:00:08]} 1-0